bitfinex-derivatives/quotes_BTCF0:USTF0_20260315
["timestamp","ask_amount","ask_price","bid_price","bid_amount"]
[1773613527403,0.041653,72013.0,71997.0,0.12150219]
[1773613528101,0.041653,72013.0,71996.0,0.00144]
[1773613528102,0.08465033,72021.0,72002.0,0.041658]
[1773613528300,0.08465033,72021.0,71999.0,0.07984019]
[1773613528301,0.041652,72014.0,72003.0,0.00144]
[1773613528502,0.041652,72014.0,72002.0,0.00144]
[1773613529101,0.041652,72014.0,72003.0,0.00144]
[1773613529501,0.041653,72013.0,72003.0,0.00144]
[1773613529904,0.08565033,72015.0,72004.0,0.041657]
[1773613529905,0.001,72015.0,72004.0,0.041657]
[1773613530214,0.00144,72019.0,72004.0,0.041657]
[1773613530215,0.043089,72019.0,72004.0,0.041657]
[1773613530606,0.04165,72018.0,72003.0,0.00144]
[1773613530814,0.041649,72020.0,72003.0,0.08128019]
[1773613531113,0.041649,72020.0,72004.0,0.07984019]
[1773613531310,0.041649,72019.0,72004.0,0.07984019]
[1773613531505,0.08465033,72016.0,71995.0,0.041663]
[1773613531711,0.12631233,71998.0,71984.0,0.00144]
[1773613532013,0.041659,72002.0,71986.0,0.041668]
[1773613532312,0.00144,72006.0,71986.0,0.07984019]
[1773613532513,0.041657,72005.0,71985.0,0.07984019]
[1773613532703,0.041658,72003.0,71988.0,0.041666]
[1773613532900,0.041658,72003.0,71989.0,0.12150619]
[1773613533109,0.041658,72004.0,71991.0,0.041665]
[1773613533312,0.041659,72003.0,71990.0,0.07984019]
[1773613533517,0.041659,72002.0,71990.0,0.07984019]
[1773613533708,0.041659,72003.0,71990.0,0.12150619]
[1773613534213,0.041659,72001.0,71991.0,0.00144]
[1773613534412,0.041658,72003.0,71992.0,0.00144]
[1773613534615,0.041664,71994.0,71980.0,0.041671]
[1773613534917,0.041662,71996.0,71981.0,0.00144]
[1773613535115,0.12631133,71998.0,71983.0,0.041669]
[1773613535317,0.12631133,71998.0,71984.0,0.041669]
[1773613535516,0.04166,72000.0,71985.0,0.00144]
[1773613535718,0.04166,72000.0,71986.0,0.00144]
[1773613536516,0.12630933,72002.0,71989.0,0.041666]
[1773613536834,0.18815727,72030.0,71992.0,0.041664]
[1773613536835,0.08465033,72017.0,71992.0,0.041664]
[1773613537023,0.041657,72006.0,71992.0,0.041664]
[1773613537210,0.041659,72002.0,71987.0,0.07984019]
[1773613537520,0.041658,72004.0,71987.0,0.07984019]
[1773613537716,0.041659,72003.0,71987.0,0.07984019]
[1773613538025,0.10123543,72030.0,71989.0,0.07984019]
[1773613538225,0.08465033,72028.0,71989.0,0.07984019]
[1773613538522,0.041656,72008.0,71994.0,0.041663]
[1773613538721,0.043094,72010.0,71996.0,0.041662]
[1773613538914,0.041654,72011.0,71998.0,0.041661]
[1773613539319,0.00144,72014.0,71996.0,0.07984019]
[1773613539518,0.00144,72014.0,71996.0,0.12150219]
[1773613539821,0.041655,72009.0,71996.0,0.12150219]
[1773613540521,0.041654,72011.0,71998.0,0.041661]
[1773613540921,0.041656,72008.0,71995.0,0.00144]
[1773613541120,0.041656,72007.0,71995.0,0.00144]
[1773613541918,0.041656,72008.0,71995.0,0.043102]
[1773613542114,0.08609033,72014.0,71995.0,0.00144]
[1773613543317,0.041656,72007.0,71995.0,0.00144]
[1773613543825,0.041655,72009.0,71995.0,0.00144]
[1773613544024,0.00144,72012.0,71996.0,0.07984019]
[1773613544525,0.041654,72011.0,71997.0,0.041661]
[1773613545419,0.00144,72012.0,71997.0,0.041661]
[1773613545815,0.08465033,72011.0,71997.0,0.041661]
[1773613546220,0.041654,72011.0,71998.0,0.041661]
[1773613546415,0.043093,72012.0,71995.0,0.08128019]
[1773613546913,0.041654,72010.0,71998.0,0.041661]
[1773613548224,0.043093,72012.0,71998.0,0.07984019]
[1773613548421,0.043093,72012.0,71995.0,0.00144]
[1773613548422,0.00144,72016.0,71999.0,0.07984019]
[1773613548615,0.08609033,72018.0,71995.0,0.00144]
[1773613548820,0.041653,72012.0,71999.0,0.04166]
[1773613549026,0.041653,72012.0,72000.0,0.04166]
[1773613550028,0.08465033,72014.0,71995.0,0.00144]
[1773613550235,0.041657,72006.0,71995.0,0.00144]
[1773613550436,0.00144,72010.0,71996.0,0.07984019]
[1773613550921,0.041655,72009.0,71996.0,0.043102]
[1773613551226,0.00144,72019.0,72001.0,0.041659]
[1773613551418,0.00144,72019.0,72002.0,0.00144]
[1773613551636,0.08465033,72018.0,72002.0,0.00144]
[1773613551926,0.08465033,72018.0,72003.0,0.00144]
[1773613552129,0.08465033,72018.0,72004.0,0.00144]
[1773613552423,0.08465033,72018.0,71986.0,0.24899471]
[1773613552424,0.08397712,72015.0,71995.0,0.08430537]
[1773613552617,0.0811485,72010.0,71991.0,0.16544791]
[1773613552817,0.0811485,72010.0,71996.0,0.00144]
[1773613553118,0.041655,72009.0,71997.0,0.043101]
[1773613553316,0.041654,72011.0,71998.0,0.08829043]
[1773613553617,0.0811485,72017.0,71998.0,0.00144]
[1773613553823,0.041656,72007.0,71998.0,0.00144]
[1773613554622,0.0811485,72014.0,71998.0,0.00144]
[1773613554824,0.0811485,72014.0,71997.0,0.00144]
[1773613555024,0.041658,72004.0,71996.0,0.00144]
[1773613555322,0.041658,72004.0,71995.0,0.00144]
[1773613555524,0.041658,72003.0,71992.0,0.16544791]
[1773613555722,0.041658,72003.0,71993.0,0.00144]
[1773613556231,0.041658,72003.0,71993.0,0.16688791]
[1773613556729,0.041657,72005.0,71998.0,0.001]
[1773613556929,0.041658,72004.0,71995.0,0.16544791]
[1773613557330,0.041657,72006.0,71995.0,0.16544791]
[1773613558124,0.041655,72008.0,71995.0,0.16544791]
[1773613559230,0.00144,72011.0,71995.0,0.16544791]
[1773613559533,0.041657,72006.0,71995.0,0.16544791]
[1773613560535,0.18238393,72032.0,72003.0,0.08685043]
[1773613560726,0.0811485,72027.0,72005.0,0.25229834]
[1773613561034,0.041649,72020.0,72006.0,0.00144]
[1773613561536,0.041649,72020.0,72007.0,0.041656]
[1773613561933,0.00144,72026.0,72006.0,0.00144]
[1773613561934,0.041649,72019.0,72006.0,0.00144]
[1773613562129,0.0811485,72024.0,72006.0,0.00144]
[1773613562836,0.0811485,72024.0,72006.0,0.043096]
[1773613563237,0.041649,72019.0,72006.0,0.043096]
[1773613564328,0.0811485,72024.0,72006.0,0.00144]
[1773613564532,0.00144,72026.0,71996.0,0.24899471]
[1773613564533,0.0811485,72011.0,71996.0,0.24899471]
[1773613564836,0.041656,72007.0,71997.0,0.00144]
[1773613565425,0.0811485,72011.0,71997.0,0.00144]
[1773613566341,0.00144,72015.0,71997.0,0.00144]
[1773613566342,0.0825885,72015.0,71997.0,0.00144]
[1773613567232,0.0811485,72014.0,71997.0,0.00144]
[1773613567436,0.041656,72007.0,71997.0,0.00144]
[1773613567739,0.0811485,72009.0,71996.0,0.00144]
[1773613568049,0.041663,71996.0,71985.0,0.24899471]
[1773613568238,0.0811485,71997.0,71977.0,0.24899471]
[1773613568443,0.041662,71996.0,71983.0,0.041669]
[1773613568740,0.041664,71994.0,71981.0,0.04167]
[1773613568938,0.041662,71997.0,71979.0,0.08685043]
[1773613569535,0.041662,71997.0,71983.0,0.041669]
[1773613569930,0.04166,72000.0,71982.0,0.08685043]
[1773613570130,0.00144,72006.0,71979.0,0.08685043]
[1773613570336,0.04166,72000.0,71986.0,0.041668]
[1773613570635,0.04166,72000.0,71987.0,0.00144]
[1773613571645,0.04166,72000.0,71987.0,0.043107]
[1773613572851,0.0811485,72001.0,71987.0,0.00144]
[1773613573642,0.041663,71995.0,71987.0,0.00144]
[1773613573852,0.041663,71995.0,71975.0,0.24899471]
[1773613573853,0.0811485,71997.0,71978.0,0.041673]
[1773613574152,0.00144,72006.0,71969.0,0.42953716]
[1773613574153,0.041666,71990.0,71979.0,0.00144]
[1773613574362,0.041666,71990.0,71980.0,0.00144]
[1773613574538,0.041666,71990.0,71977.0,0.041673]
[1773613574848,0.041667,71989.0,71981.0,0.00144]
[1773613575145,0.041665,71991.0,71981.0,0.00144]
[1773613577049,0.0811485,71997.0,71981.0,0.00144]
[1773613577050,0.041664,71993.0,71981.0,0.00144]
[1773613578150,0.041665,71992.0,71981.0,0.00144]
[1773613579348,0.0811485,71994.0,71979.0,0.00144]
[1773613579739,0.041667,71989.0,71979.0,0.00144]
[1773613579940,0.041667,71989.0,71980.0,0.00144]
[1773613580137,0.0811485,71994.0,71972.0,0.55471471]
[1773613580138,0.041665,71992.0,71972.0,0.55471471]
[1773613580351,0.00144,71998.0,71966.0,0.00013023]
[1773613580352,0.0811485,71985.0,71966.0,0.00013023]
[1773613580552,0.0811485,71988.0,71967.0,0.00144]
[1773613580752,0.0811485,71976.0,71966.0,0.00013023]
[1773613580950,0.0811485,71973.0,71964.0,0.00144]
[1773613581948,0.00013023,71972.0,71964.0,0.00144]
[1773613582248,0.00013023,71972.0,71962.0,0.041681]
[1773613584053,0.00013023,71972.0,71963.0,0.041681]
[1773613586752,0.00013023,71972.0,71965.0,0.04168]
[1773613586957,0.00013023,71972.0,71966.0,0.00144]
[1773613598956,0.041673,71977.0,71966.0,0.043119]
[1773613599456,0.0024312,71981.0,71967.0,0.08604926]
[1773613600769,0.0024312,71981.0,71966.0,0.043119]
[1773613600955,0.041674,71976.0,71966.0,0.00144]
[1773613601152,0.041684,71959.0,71948.0,0.24899471]
[1773613601459,0.041684,71959.0,71943.0,0.39729265]
[1773613601460,0.041681,71963.0,71950.0,0.041689]
[1773613601664,0.08727901,71978.0,71951.0,0.08604926]
[1773613602055,0.04168,71966.0,71953.0,0.041687]
[1773613602456,0.04168,71965.0,71951.0,0.12773726]
[1773613602857,0.04168,71965.0,71952.0,0.041687]
[1773613604062,0.08871901,71969.0,71950.0,0.041689]
[1773613604459,0.08727901,71968.0,71950.0,0.041689]
[1773613604665,0.041682,71962.0,71949.0,0.043129]
[1773613605667,0.041684,71958.0,71944.0,0.041692]
[1773613606872,0.041683,71961.0,71946.0,0.041691]
[1773613607063,0.041683,71961.0,71949.0,0.041689]
[1773613607360,0.041683,71961.0,71950.0,0.00144]
[1773613610278,0.0024312,71981.0,71951.0,0.08604926]
[1773613610479,0.041672,71980.0,71966.0,0.041679]
[1773613610765,0.041672,71980.0,71967.0,0.00144]
[1773613610967,0.041673,71979.0,71967.0,0.00144]
[1773613611363,0.0034312,71981.0,71967.0,0.00144]
[1773613611758,0.09071021,71981.0,71967.0,0.00144]
[1773613612067,0.0034312,71981.0,71967.0,0.00144]
[1773613612271,0.0034312,71981.0,71971.0,0.041676]
[1773613613074,0.0024312,71981.0,71971.0,0.041676]
[1773613613267,0.001,71979.0,71971.0,0.041676]
[1773613613471,0.001,71979.0,71969.0,0.041678]
[1773613613666,0.0024312,71981.0,71970.0,0.041677]
[1773613613970,0.0034312,71981.0,71970.0,0.041677]
[1773613614368,0.0034312,71981.0,71967.0,0.00144]
[1773613614369,0.0024312,71981.0,71971.0,0.041676]
[1773613614671,0.001,71979.0,71971.0,0.041676]
[1773613616571,0.0034312,71981.0,71971.0,0.041676]
[1773613617164,0.0024312,71981.0,71971.0,0.041676]
[1773613617864,0.0024312,71981.0,71968.0,0.041678]
[1773613618064,0.041672,71980.0,71967.0,0.00144]
[1773613618371,0.0024312,71981.0,71970.0,0.041677]
[1773613620564,0.0441022,71981.0,71968.0,0.041678]
[1773613620760,0.0024312,71981.0,71970.0,0.041677]
[1773613621056,0.0024312,71981.0,71967.0,0.043119]
[1773613621057,0.041672,71980.0,71967.0,0.043119]
[1773613622468,0.12696989,71974.0,71961.0,0.041682]
[1773613622668,0.041676,71972.0,71960.0,0.00144]
[1773613622866,0.12696989,71974.0,71961.0,0.041682]
[1773613623066,0.041675,71974.0,71962.0,0.041681]
[1773613624476,0.041674,71975.0,71963.0,0.041681]
[1773613625565,0.041674,71975.0,71961.0,0.041682]
[1773613625762,0.041674,71975.0,71960.0,0.00144]
[1773613626079,0.041674,71975.0,71962.0,0.041682]
[1773613631774,0.041675,71974.0,71962.0,0.041682]
[1773613633475,0.08529489,71976.0,71960.0,0.00144]
[1773613633675,0.041678,71970.0,71960.0,0.00144]
[1773613634075,0.08529489,71976.0,71960.0,0.00144]
[1773613634776,0.08529489,71976.0,71960.0,0.043123]
[1773613635475,0.08529489,71976.0,71952.0,0.24899471]
[1773613635476,0.08529489,71976.0,71957.0,0.00144]
[1773613635783,0.041678,71969.0,71957.0,0.00144]
[1773613635974,0.041678,71969.0,71955.0,0.08338253]
[1773613636175,0.041678,71969.0,71956.0,0.00144]
[1773613637077,0.0024312,71981.0,71960.0,0.08338253]
[1773613637281,0.0024312,71981.0,71961.0,0.041682]
[1773613637282,0.041675,71974.0,71961.0,0.041682]
[1773613640089,0.0024312,71981.0,71961.0,0.08338253]
[1773613640090,2e-07,71981.0,71961.0,0.08338253]
[1773613640277,2e-07,71981.0,71973.0,0.041675]
[1773613640477,0.041668,71986.0,71974.0,0.00144]
[1773613641898,0.00144,71994.0,71974.0,0.00144]
[1773613641899,0.041667,71988.0,71975.0,0.041674]
[1773613642787,0.041666,71990.0,71974.0,0.00144]
[1773613642985,0.00144,72001.0,71983.0,0.041669]
[1773613643191,0.041665,71992.0,71982.0,0.00144]
[1773613643491,0.041665,71992.0,71980.0,0.041671]
[1773613643691,0.07905371,72001.0,71983.0,0.041669]
[1773613643890,0.041664,71994.0,71982.0,0.00144]
[1773613644584,0.041665,71992.0,71982.0,0.00144]
[1773613648392,0.07905371,72005.0,71982.0,0.00144]
[1773613648588,0.07905371,72001.0,71982.0,0.00144]
[1773613649993,0.041665,71992.0,71982.0,0.00144]
[1773613651483,0.12071871,71992.0,71982.0,0.00144]
[1773613651992,0.07905371,71991.0,71983.0,0.00144]
[1773613652194,0.07905371,71991.0,71979.0,0.041672]
[1773613652490,0.07905371,71988.0,71961.0,0.08514769]
[1773613652690,0.07905371,71984.0,71973.0,0.041675]
[1773613652897,0.07905371,71984.0,71973.0,0.043115]
[1773613653095,0.07905371,71984.0,71973.0,0.00144]
[1773613653300,0.07905371,71988.0,71972.0,0.00144]
[1773613653798,0.041668,71986.0,71973.0,0.041675]
[1773613654389,0.041669,71985.0,71973.0,0.041675]
[1773613654596,0.041669,71985.0,71972.0,0.00144]
[1773613654795,0.00144,71991.0,71972.0,0.00144]
[1773613654796,0.04167,71984.0,71972.0,0.00144]
[1773613654995,0.04167,71983.0,71972.0,0.00144]
[1773613655199,0.041668,71986.0,71974.0,0.041675]
[1773613655997,0.041668,71986.0,71972.0,0.043116]
[1773613656499,0.12072171,71986.0,71972.0,0.043116]
[1773613657100,0.041669,71985.0,71972.0,0.043116]
[1773613657400,0.04167,71984.0,71972.0,0.043116]
[1773613658903,0.04167,71982.0,71972.0,0.00144]
[1773613659205,0.041669,71984.0,71972.0,0.00144]
[1773613659906,0.12072271,71984.0,71972.0,0.00144]
[1773613662194,0.12072271,71984.0,71972.0,0.043116]
[1773613662401,0.041668,71986.0,71972.0,0.00144]
[1773613662600,0.041668,71986.0,71974.0,0.041675]
[1773613664196,0.041664,71993.0,71980.0,0.041671]
[1773613664414,0.041663,71995.0,71983.0,0.041669]
[1773613664599,0.041663,71995.0,71967.0,0.24899471]
[1773613664600,0.00144,72001.0,71984.0,0.00144]
[1773613664901,0.04166,72001.0,71988.0,0.041666]
[1773613665499,0.07905371,72005.0,71985.0,0.00144]
[1773613665693,0.041658,72004.0,71991.0,0.041665]
[1773613665889,0.041658,72003.0,71992.0,0.00144]
[1773613666598,0.041659,72002.0,71992.0,0.00144]
[1773613667100,0.041658,72004.0,71992.0,0.00144]
[1773613668410,0.07905371,72018.0,71992.0,0.00144]
[1773613668707,0.07905371,72019.0,71992.0,0.00144]
[1773613668893,0.041654,72011.0,71997.0,0.041661]
[1773613669294,0.12043785,72027.0,71995.0,0.08514769]
[1773613669497,0.041652,72014.0,71999.0,0.04166]
[1773613669708,0.07905371,72017.0,71995.0,0.08514769]
[1773613669709,0.041652,72015.0,72001.0,0.041659]
[1773613670408,0.041651,72016.0,72003.0,0.041658]
[1773613671207,0.041652,72015.0,72001.0,0.041659]
[1773613671505,0.04165,72017.0,72004.0,0.041657]
[1773613671703,0.04165,72017.0,72005.0,0.041657]
[1773613671919,0.12070271,72019.0,72005.0,0.041657]
[1773613672208,0.041648,72021.0,72007.0,0.041656]
[1773613672409,0.04165,72017.0,72007.0,0.00144]
[1773613672605,0.041651,72016.0,72007.0,0.00144]
[1773613673503,0.1215967,72016.0,72008.0,0.00144]
[1773613673696,0.1215967,72016.0,72007.0,0.00144]
[1773613673902,0.1215967,72016.0,72007.0,0.0001497]
[1773613674103,0.0799457,72016.0,72007.0,0.00144]
[1773613674304,0.0799457,72019.0,72002.0,0.00144]
[1773613674506,0.0799457,72013.0,72002.0,0.00144]
[1773613674906,0.041653,72012.0,72002.0,0.00144]
[1773613675299,0.0799457,72011.0,72002.0,0.00144]
[1773613676106,0.0799457,72011.0,72000.0,0.03473907]
[1773613676107,0.0799457,72008.0,71998.0,0.03330007]
[1773613677311,0.041654,72010.0,71998.0,0.03330007]
[1773613680315,0.14336619,72028.0,71999.0,0.04166]
[1773613680510,0.0813857,72027.0,71999.0,0.04166]
[1773613681109,0.0799457,72012.0,71996.0,0.00144]
[1773613681411,0.0799457,72005.0,71983.0,0.24899471]
[1773613681608,0.0799457,72005.0,71984.0,0.00144]
[1773613681813,0.0799457,72003.0,71984.0,0.00144]
[1773613682607,0.0799457,72003.0,71985.0,0.00144]
[1773613682811,0.0799457,72001.0,71989.0,0.041666]
[1773613683009,0.0799457,72001.0,71990.0,0.041665]
[1773613683199,0.041654,72004.0,71985.0,0.08525802]
[1773613684012,0.041654,72004.0,71991.0,0.041665]
[1773613684215,0.1632577,72004.0,71992.0,0.00144]
[1773613686813,0.1216037,72004.0,71992.0,0.00144]
[1773613688416,0.0799457,72003.0,71992.0,0.00144]
[1773613688804,0.0799457,72003.0,71989.0,0.041666]
[1773613689115,0.0799457,71994.0,71988.0,0.00144]
[1773613689606,0.0799457,71994.0,71984.0,0.041669]
[1773613689812,0.0799457,71994.0,71985.0,0.00144]
[1773613691017,0.0799457,71993.0,71974.0,0.08381802]
[1773613691218,0.0799457,71993.0,71975.0,0.00144]
[1773613691418,0.0799457,71993.0,71982.0,0.04167]
[1773613691926,0.0799457,71993.0,71983.0,0.00144]
[1773613693220,0.0799457,71988.0,71974.0,0.24899471]
[1773613693421,0.0799457,71987.0,71976.0,0.041674]
[1773613693620,0.041654,71987.0,71977.0,0.043113]
[1773613693820,0.041654,71987.0,71978.0,0.043112]
[1773613694122,0.041654,71987.0,71979.0,0.00144]
[1773613695819,0.0799457,71991.0,71979.0,0.00144]
[1773613696018,0.08332,71990.0,71979.0,0.00144]
[1773613698817,0.041654,71990.0,71979.0,0.00144]
[1773613699122,0.041654,71990.0,71979.0,0.043112]
[1773613700030,0.041654,71990.0,71980.0,0.041671]
[1773613702123,0.041665,71991.0,71980.0,0.041671]
[1773613702329,0.041654,71990.0,71980.0,0.041671]
[1773613704637,0.08124399,71989.0,71981.0,0.00144]
[1773613704837,0.08124399,71989.0,71979.0,0.00144]
[1773613706143,0.08124399,71982.0,71973.0,0.00144]
[1773613706527,0.08124399,71982.0,71964.0,0.24899471]
[1773613706528,0.08124399,71982.0,71966.0,0.00144]
[1773613706729,0.12289799,71981.0,71966.0,0.00144]
[1773613707939,0.12289799,71981.0,71970.0,0.041677]
[1773613708741,0.08124399,71979.0,71959.0,0.24899471]
[1773613708933,0.08124399,71969.0,71949.0,0.24899471]
[1773613709239,0.08124399,71964.0,71951.0,0.041688]
[1773613709441,0.00144,71969.0,71951.0,0.041688]
[1773613709631,0.12436199,71969.0,71951.0,0.041688]
[1773613710028,0.08124399,71968.0,71951.0,0.041688]
[1773613710227,0.08124399,71966.0,71951.0,0.041688]
[1773613710434,0.041654,71968.0,71951.0,0.041688]
[1773613711835,0.083333,71968.0,71951.0,0.041688]
[1773613714551,0.083333,71968.0,71950.0,0.02542318]
[1773613714937,0.083333,71968.0,71951.0,0.041688]
[1773613715744,0.083333,71968.0,71953.0,0.041687]
[1773613716638,0.041654,71968.0,71954.0,0.08515923]
[1773613716848,0.041675,71974.0,71959.0,0.08371923]
[1773613717945,0.041675,71974.0,71958.0,0.041684]
[1773613718147,0.041676,71973.0,71958.0,0.041684]
[1773613720947,0.041675,71975.0,71961.0,0.08371923]
[1773613721143,0.041675,71974.0,71961.0,0.08371923]
[1773613722042,0.041674,71976.0,71962.0,0.043122]
[1773613722449,0.041675,71975.0,71962.0,0.043122]
[1773613723146,0.00144,71980.0,71962.0,0.00144]
[1773613723341,0.08268399,71980.0,71962.0,0.00144]
[1773613723741,0.08124399,71980.0,71962.0,0.00144]
[1773613724962,0.041675,71974.0,71962.0,0.00144]
[1773613726857,0.08124399,71979.0,71954.0,0.00144]
[1773613727056,0.08688845,71980.0,71950.0,0.08688845]
[1773613727367,0.08124399,71963.0,71951.0,0.043128]
[1773613727562,0.08124399,71963.0,71952.0,0.043127]
[1773613727762,0.08124399,71963.0,71952.0,0.041687]
[1773613727963,0.08124399,71963.0,71953.0,0.00144]
[1773613728164,0.04168,71966.0,71953.0,0.00144]
[1773613728465,0.04168,71966.0,71953.0,0.043127]
[1773613730868,0.04168,71966.0,71938.0,0.31124339]
[1773613730869,0.08124399,71948.0,71934.0,0.31124339]
[1773613731167,0.08124399,71949.0,71933.0,0.00144]
[1773613731370,0.08124399,71949.0,71931.0,0.00213511]
[1773613731774,0.041692,71945.0,71932.0,0.041699]
[1773613733674,0.041691,71947.0,71932.0,0.041699]
[1773613734672,0.041692,71946.0,71932.0,0.041699]
[1773613735670,0.04169,71948.0,71934.0,0.041698]
[1773613735877,0.041691,71947.0,71934.0,0.041698]
[1773613738376,0.041687,71953.0,71940.0,0.041694]
[1773613738562,0.041687,71953.0,71941.0,0.00144]
[1773613739873,0.08543313,71958.0,71941.0,0.00144]
[1773613740178,0.041687,71954.0,71941.0,0.043134]
[1773613740385,0.041688,71953.0,71941.0,0.043134]
[1773613742082,0.041686,71955.0,71941.0,0.043134]
[1773613742283,0.041687,71954.0,71942.0,0.041693]
[1773613743583,0.041687,71953.0,71941.0,0.00144]
[1773613743784,0.12568013,71953.0,71941.0,0.00144]
[1773613746088,0.12568013,71953.0,71941.0,0.043134]
[1773613746281,0.041688,71952.0,71941.0,0.00144]
[1773613746882,0.12568113,71952.0,71941.0,0.00144]
[1773613748675,0.08399313,71946.0,71940.0,0.00144]
[1773613749285,0.12568213,71950.0,71940.0,0.00144]
[1773613749789,0.12568213,71950.0,71938.0,0.041696]
[1773613753485,0.041689,71950.0,71938.0,0.041696]
[1773613753688,0.08399313,71949.0,71938.0,0.041696]
[1773613753885,0.12568313,71949.0,71938.0,0.041696]
[1773613756489,0.12568313,71948.0,71937.0,0.00144]
[1773613756792,0.08399313,71947.0,71937.0,0.00144]
[1773613757188,0.08399313,71949.0,71931.0,0.00069511]
[1773613757395,0.041694,71942.0,71931.0,0.00069511]
[1773613757588,0.08399313,71939.0,71928.0,0.04326772]
[1773613757985,0.08399313,71939.0,71929.0,0.041701]
[1773613761194,0.08399313,71939.0,71930.0,0.0417]
[1773613763503,0.08399313,71939.0,71928.0,0.04326772]
[1773613763690,0.08399313,71939.0,71926.0,0.00144]
[1773613764189,0.08399313,71939.0,71915.0,0.07916767]
[1773613764500,0.12162909,71937.0,71926.0,0.041703]
[1773613764693,0.00012672,71936.0,71927.0,0.00218838]
[1773613765598,0.00012672,71936.0,71931.0,0.00218838]
[1773613765991,0.08005881,71936.0,71931.0,0.00218838]
[1773613766794,0.12175581,71936.0,71933.0,3.8e-07]
[1773613766999,0.12175581,71936.0,71926.0,0.00144]
[1773613767298,0.08005881,71936.0,71926.0,0.00144]
[1773613769401,0.08005881,71936.0,71926.0,0.043143]
[1773613770499,0.07993209,71931.0,71911.0,0.31124339]
[1773613770697,0.07993209,71931.0,71910.0,0.16618309]
[1773613770698,0.07993209,71930.0,71919.0,0.041707]
[1773613770895,0.07993209,71930.0,71920.0,0.00144]
[1773613771405,0.07993209,71930.0,71921.0,0.00144]
[1773613771593,0.041699,71933.0,71922.0,0.041705]
[1773613771903,0.043138,71935.0,71922.0,0.041705]
[1773613772201,0.043138,71935.0,71923.0,0.041704]
[1773613772400,0.041698,71935.0,71923.0,0.041704]
[1773613773102,0.00012672,71936.0,71925.0,0.041703]
[1773613774807,0.00012672,71936.0,71926.0,0.041703]
[1773613776204,0.00012672,71936.0,71927.0,0.041702]
[1773613776505,0.041692,71945.0,71922.0,0.07916767]
[1773613776803,0.041692,71945.0,71921.0,0.00144]
[1773613776804,0.041693,71944.0,71931.0,0.041699]
[1773613777011,0.041693,71944.0,71932.0,0.00144]
[1773613777702,0.041693,71943.0,71932.0,0.00144]
[1773613779307,0.041692,71945.0,71932.0,0.043139]
[1773613779509,0.041693,71944.0,71932.0,0.043139]
[1773613779698,0.041693,71944.0,71932.0,0.00144]
[1773613780402,0.041693,71944.0,71932.0,0.043139]
[1773613780705,0.08137209,71948.0,71933.0,0.041698]
[1773613780897,0.07993209,71948.0,71932.0,0.00144]
[1773613782012,0.041693,71944.0,71932.0,0.00144]
[1773613782403,0.041693,71943.0,71932.0,0.00144]
[1773613782909,0.041692,71945.0,71932.0,0.00144]
[1773613783205,0.041693,71944.0,71932.0,0.00144]
[1773613783508,0.041692,71946.0,71933.0,0.041698]
[1773613784009,0.041692,71945.0,71932.0,0.00144]
[1773613785110,0.041692,71945.0,71933.0,0.041698]
[1773613785412,0.041692,71945.0,71932.0,0.00144]
[1773613786012,0.041693,71944.0,71932.0,0.00144]
[1773613786812,0.12162209,71948.0,71932.0,0.00144]
[1773613787011,0.041691,71947.0,71932.0,0.00144]
[1773613788115,0.041692,71945.0,71934.0,0.041698]
[1773613788909,0.041692,71945.0,71932.0,0.043139]
[1773613789109,0.0392608,71945.0,71932.0,0.043139]
[1773613789707,0.12318046,71962.0,71932.0,0.043139]
[1773613789708,0.07993209,71966.0,71932.0,0.00144]
[1773613789901,0.041674,71976.0,71932.0,0.08060767]
[1773613789902,0.07993209,71954.0,71932.0,0.08060767]
[1773613790209,0.27430506,71953.0,71932.0,0.08060767]
[1773613790405,0.041689,71950.0,71938.0,0.041695]
[1773613790615,0.041689,71950.0,71939.0,0.00144]
[1773613790815,0.07993209,71952.0,71939.0,0.00144]
[1773613791200,0.041679,71968.0,71940.0,0.07916767]
[1773613791405,0.10133386,71985.0,71953.0,0.041687]
[1773613791406,0.07993209,71965.0,71953.0,0.041687]
[1773613791606,0.07993209,71965.0,71954.0,0.041686]
[1773613792506,0.00144,71969.0,71951.0,0.00144]
[1773613792713,0.07672275,71972.0,71960.0,0.041683]
[1773613793215,0.07672275,71972.0,71960.0,0.03334355]
[1773613794301,0.041674,71976.0,71964.0,0.00833945]
[1773613794507,0.07672275,71990.0,71965.0,0.0786299]
[1773613794707,0.07672275,71985.0,71972.0,0.041676]
[1773613794907,0.07672275,71985.0,71973.0,0.041675]
[1773613795204,0.07672275,71985.0,71974.0,0.041675]
[1773613795406,0.07672275,71985.0,71975.0,0.041674]
[1773613795810,0.07672275,71989.0,71971.0,0.00144]
[1773613796112,0.07672275,71989.0,71976.0,0.041673]
[1773613796314,0.07672275,71988.0,71976.0,0.041673]
[1773613797317,0.07672275,71982.0,71971.0,0.00144]
[1773613797516,0.07672275,71982.0,71973.0,0.00820166]
[1773613797715,0.07672275,71987.0,71973.0,0.00820166]
[1773613797907,0.07672275,71987.0,71974.0,0.041674]
[1773613798215,0.12363762,72002.0,71972.0,0.041676]
[1773613798216,0.07672275,71984.0,71972.0,0.041676]
[1773613799410,0.041669,71985.0,71972.0,0.041676]
[1773613800712,0.00144,71987.0,71974.0,0.00820166]
[1773613800913,0.00144,71987.0,71975.0,0.041674]
[1773613801108,0.043108,71987.0,71974.0,0.00820166]
[1773613801305,0.07672275,71986.0,71974.0,0.00820166]
[1773613802523,0.043108,71987.0,71974.0,0.00820166]
[1773613802816,0.00144,71987.0,71974.0,0.00820166]
[1773613803020,0.11838375,71999.0,71986.0,0.041668]
[1773613803316,0.00144,72008.0,71989.0,0.16564532]
[1773613803508,0.07672275,72017.0,71999.0,0.04166]
[1773613803708,0.04165,72018.0,72000.0,0.0800699]
[1773613803914,0.00144,72020.0,72000.0,0.0800699]
[1773613803915,0.041649,72020.0,72002.0,0.041659]
[1773613804115,0.041649,72020.0,72003.0,0.041658]
[1773613804321,0.04165,72018.0,72004.0,0.00820166]
[1773613804520,0.00144,72021.0,72004.0,0.00820166]